bitfinex-derivatives/quotes_SOLF0:USTF0_20251201
["timestamp","ask_amount","ask_price","bid_price","bid_amount"]
[1764574559660,10.3744,126.69,126.68,0.05405109]
[1764574572269,3.3231651,126.7,126.68,3.17405109]
[1764574576271,3.3231651,126.7,126.68,4.16226185]
[1764574576478,0.0531651,126.7,126.69,3.12]
[1764574577377,3.3231651,126.7,126.68,7.28226185]
[1764574579365,3.3231651,126.7,126.68,3.17405109]
[1764574579878,3.3231651,126.7,126.69,3.3]
[1764574580072,0.0531651,126.7,126.69,3.3]
[1764574580472,3.3431651,126.7,126.69,3.3]
[1764574581081,7.102,126.74,126.7,3.3]
[1764574581285,10.392,126.74,126.72,3.3]
[1764574581585,3.29,126.73,126.71,7.40821076]
[1764574582180,3.34046381,126.73,126.71,7.46813149]
[1764574583987,0.05046381,126.73,126.72,3.3]
[1764574584383,3.29,126.8,126.73,3.3]
[1764574585392,3.29,126.76,126.75,0.04975974]
[1764574591297,0.05294349,126.78,126.75,3.20975974]
[1764574591596,0.05294349,126.78,126.77,3.16]
[1764574591788,0.05294349,126.78,126.76,11.20851076]
[1764574591789,0.05294349,126.78,126.76,14.36851076]
[1764574591991,3.21294349,126.78,126.76,14.36851076]
[1764574593297,3.21294349,126.78,126.76,7.26821076]
[1764574593898,3.21294349,126.78,126.75,0.04975974]
[1764574595298,10.31234349,126.78,126.75,0.04975974]
[1764574595498,3.16,126.77,126.75,0.04975974]
[1764574599104,10.2599,126.77,126.75,0.04975974]
[1764574599306,3.16,126.76,126.75,0.04975974]
[1764574601105,3.21294349,126.78,126.75,3.20975974]
[1764574601308,3.16,126.77,126.75,3.20975974]
[1764574603810,7.15234349,126.78,126.76,3.16]
[1764574604009,10.31234349,126.78,126.76,3.16]
[1764574604205,3.16,126.77,126.75,7.3179705]
[1764574604406,3.16,126.77,126.75,3.20975974]
[1764574605407,10.31234349,126.78,126.75,3.20975974]
[1764574605714,3.21294349,126.78,126.75,10.31045974]
[1764574605905,0.05294349,126.78,126.77,3.16]
[1764574606306,3.21294349,126.78,126.76,3.16]
[1764574606510,3.21294349,126.78,126.75,0.04975974]
[1764574607602,3.16,126.76,126.67,110.5256]
[1764574607807,3.16,126.75,126.69,3.16]
[1764574608212,3.16,126.74,126.71,3.16]
[1764574608909,3.21865546,126.74,126.71,3.21830781]
[1764574610414,3.27,126.73,126.71,3.21830781]
[1764574611514,3.27,126.73,126.71,0.05830781]
[1764574611813,10.3722,126.73,126.71,0.05830781]
[1764574612015,3.27,126.72,126.71,0.05830781]
[1764574612610,3.32865546,126.74,126.71,0.05830781]
[1764574613606,3.32865546,126.74,126.71,3.46830781]
[1764574613815,3.32865546,126.74,126.71,0.05830781]
[1764574614117,3.27,126.72,126.71,0.05830781]
[1764574614818,0.05865546,126.74,126.71,0.05830781]
[1764574615013,3.27,126.73,126.71,3.46830781]
[1764574615215,0.05865546,126.74,126.71,3.46830781]
[1764574615517,3.32865546,126.74,126.71,3.46830781]
[1764574619721,0.05865546,126.74,126.73,3.41]
[1764574621227,0.05865546,126.74,126.73,10.5122]
[1764574622723,3.27,126.79,126.76,3.41]
[1764574623025,3.27,126.79,126.77,32.99871491]
[1764574623815,3.31981198,126.79,126.77,33.05923786]
[1764574627422,0.04981198,126.79,126.78,3.41]
[1764574629432,3.31981198,126.79,126.78,29.58871491]
[1764574630118,0.04981198,126.79,126.78,32.99871491]
[1764574631928,0.04981198,126.79,126.78,40.09811491]
[1764574641737,10.4465,126.84,126.81,3.09]
[1764574642035,10.4465,126.84,126.82,26.96]
[1764574642230,3.35,126.83,126.82,26.96]
[1764574645232,7.0965,126.84,126.82,26.96]
[1764574645437,3.32,126.85,126.83,2.62871491]
[1764574645648,3.32,126.85,126.83,2.68513786]
[1764574647734,3.32,126.85,126.83,0.05642295]
[1764574648239,10.4155,126.85,126.83,0.05642295]
[1764574648838,3.32,126.84,126.83,0.05642295]
[1764574650149,10.416,126.84,126.83,0.05642295]
[1764574650734,3.32,126.84,126.83,0.05642295]
[1764574651637,3.32,126.84,126.72,441.9369]
[1764574651638,3.32,126.83,126.78,2.62871491]
[1764574651836,3.32,126.83,126.78,5.96871491]
[1764574652135,3.32,126.83,126.76,34.0401]
[1764574652136,3.32,126.83,126.79,3.34]
[1764574652433,3.32,126.83,126.78,5.96871491]
[1764574652740,10.418,126.81,126.79,0.0540234]
[1764574652941,3.37623877,126.82,126.8,5.96871491]
[1764574653143,3.37623877,126.82,126.81,3.34]
[1764574653144,0.05623877,126.82,126.81,3.34]
[1764574655339,0.05623877,126.82,126.81,5.96871491]
[1764574658142,0.05623877,126.82,126.81,3.34]
[1764574658349,0.05623877,126.82,126.8,29.58871491]
[1764574658649,0.05623877,126.82,126.8,32.92871491]
[1764574659042,3.37623877,126.82,126.8,32.92871491]
[1764574659240,3.37623877,126.82,126.79,3.3940234]
[1764574659241,3.32,126.81,126.79,3.3940234]
[1764574659756,3.32,126.81,126.79,0.0540234]
[1764574665350,3.32,126.8,126.79,0.0540234]
[1764574669060,10.4177,126.81,126.79,3.3940234]
[1764574669660,3.32,126.8,126.79,3.3940234]
[1764574670656,3.32,126.8,126.79,0.0540234]
[1764574677963,0.05623877,126.82,126.79,7.53615786]
[1764574678167,0.05623877,126.82,126.8,3.38]
[1764574679054,0.05623877,126.82,126.81,14.57983446]
[1764574679656,3.15,126.86,126.83,3.38]
[1764574679860,3.15,126.86,126.84,30.34]
[1764574680761,3.15,126.86,126.84,30.39434745]
[1764574682371,3.15,126.87,126.85,3.38]
[1764574685370,3.15,126.87,126.84,41.59218191]
[1764574685569,10.2438,126.88,126.85,3.38]
[1764574686172,3.15,126.87,126.85,3.38]
[1764574687379,10.2431,126.9,126.87,3.38]
[1764574687576,10.2431,126.9,126.87,3.43791683]
[1764574687881,3.15,126.89,126.87,0.05791683]
[1764574688180,3.15,126.89,126.87,3.43791683]
[1764574688675,10.2434,126.89,126.87,0.05791683]
[1764574688881,3.15,126.88,126.83,26.94]
[1764574689072,3.15,126.88,126.83,30.32]
[1764574690180,3.15,126.86,126.84,3.43420582]
[1764574690778,3.15,126.86,126.84,0.05420582]
[1764574692077,3.20490562,126.87,126.84,3.43420582]
[1764574693881,0.05490562,126.87,126.85,3.38]
[1764574694074,0.05490562,126.87,126.86,7.48213446]
[1764574694973,3.20490562,126.87,126.86,26.96]
[1764574695175,0.05490562,126.87,126.85,7.48213446]
[1764574695376,0.05490562,126.87,126.86,3.38]
[1764574696185,0.05490562,126.87,126.86,10.4749]
[1764574696387,3.15,126.91,126.87,3.38]
[1764574696585,3.15,126.91,126.88,3.38]
[1764574697375,3.17158476,126.91,126.88,3.43923991]
[1764574697581,3.17158476,126.91,126.89,26.96]
[1764574700089,3.17158476,126.91,126.89,30.16]
[1764574700583,3.17158476,126.91,126.89,26.96]
[1764574701192,3.17158476,126.91,126.89,30.16]
[1764574702385,3.17158476,126.91,126.89,26.96]
[1764574702994,3.17158476,126.91,126.89,30.16]
[1764574705194,0.02158476,126.91,126.89,30.16]
[1764574705696,0.02158476,126.91,126.9,3.2]
[1764574707393,0.02158476,126.91,126.9,10.2926]
[1764574709596,10.4598,126.96,126.93,3.2]
[1764574710700,10.4598,126.96,126.93,3.25145725]
[1764574711191,3.37,126.96,126.93,3.25145725]
[1764574712200,3.37,126.96,126.94,3.17]
[1764574712405,3.25,127.01,126.95,30.11]
[1764574712602,3.25,127.01,126.97,0.05358619]
[1764574712903,3.25,127.01,126.97,3.22358619]
[1764574713303,3.25,127.0,126.97,3.22358619]
[1764574713703,141.24173446,127.06,126.99,3.17]
[1764574713704,3.25,127.06,126.99,3.17]
[1764574713900,3.25,127.06,127.01,3.23048656]
[1764574714107,3.25,127.06,127.02,3.17]
[1764574714404,3.25,127.08,127.04,3.17]
[1764574714597,3.25,127.08,127.02,3.17]
[1764574714805,3.25,127.06,127.05,0.05439672]
[1764574715202,3.25,127.05,127.0,30.13]
[1764574715403,3.25,127.05,127.01,3.17]
[1764574715803,3.25,127.04,127.0,3.17]
[1764574716008,3.25,127.08,127.0,3.17]
[1764574716204,3.25,127.08,127.0,7.27213446]
[1764574716406,3.30439672,127.05,127.03,0.05425551]
[1764574717005,10.38879672,127.05,127.03,0.05425551]
[1764574717205,3.25,127.04,127.03,0.05425551]
[1764574717711,3.25,127.04,127.0,7.27213446]
[1764574717712,3.25,127.03,127.0,3.17]
[1764574718208,3.30439672,127.05,127.0,3.17]
[1764574718408,0.05439672,127.05,127.02,3.17]
[1764574718615,0.05439672,127.05,127.04,3.17]
[1764574720108,10.3322,127.09,127.05,3.17]
[1764574720316,7.0822,127.09,127.06,3.17]
[1764574720506,3.25,127.11,127.06,3.17]
[1764574720700,3.25,127.11,127.06,30.15]
[1764574720907,3.25,127.08,127.01,3.17]
[1764574721212,3.25,127.08,127.03,0.05865367]
[1764574721213,3.25,127.05,127.03,0.05865367]
[1764574721613,10.3343,127.05,127.03,0.05865367]
[1764574721812,3.25,127.04,127.03,0.05865367]
[1764574722210,10.3343,127.05,127.03,0.05865367]
[1764574722909,0.05425551,127.06,127.03,3.22865367]
[1764574723307,3.30425551,127.06,127.03,0.05865367]
[1764574723715,0.05425551,127.06,127.03,3.22865367]
[1764574724407,10.38815551,127.06,127.03,3.22865367]
[1764574724605,3.25,127.05,127.03,0.05865367]
[1764574725111,10.3345,127.05,127.03,0.05865367]
[1764574725316,3.25,127.04,127.03,0.05865367]
[1764574725616,10.3345,127.05,127.03,0.05865367]
[1764574726218,3.25,127.04,127.03,0.05865367]
[1764574726412,10.3345,127.05,127.03,0.05865367]
[1764574728420,3.25,127.04,127.03,0.05865367]
[1764574732129,3.35,127.05,127.03,0.05865367]
[1764574738032,3.35,127.04,127.03,0.05865367]
[1764574739327,10.4348,127.04,127.03,0.05865367]
[1764574740726,3.35,126.99,126.95,3.1]
[1764574741030,3.35,126.99,126.97,3.1]
[1764574741421,3.35,126.99,126.96,5.71593572]
[1764574741932,3.40976885,126.99,126.96,5.76859725]
[1764574742731,3.40976885,126.99,126.96,0.05266153]
[1764574744129,10.49796885,126.99,126.96,0.05266153]
[1764574744433,3.35,126.98,126.96,0.05266153]
[1764574744822,10.4382,126.98,126.96,0.05266153]
[1764574745026,3.35,126.97,126.96,0.05266153]
[1764574746124,3.35,126.96,126.9,3.1]
[1764574746326,3.35,126.95,126.91,3.1]
[1764574746633,3.35,126.95,126.91,5.71593572]
[1764574747132,3.35,126.95,126.92,0.05202565]
[1764574747330,10.49918717,126.94,126.92,0.05202565]
[1764574748332,3.35,126.93,126.92,0.05202565]
[1764574750235,7.14918717,126.94,126.88,5.71593572]
[1764574750236,3.35,126.91,126.88,5.71593572]
[1764574750425,3.35,126.91,126.88,32.69593572]
[1764574751229,3.35,126.96,126.91,3.1]
[1764574751425,0.05448668,126.95,126.92,2.672334]
[1764574751639,3.40448668,126.95,126.92,5.772334]
[1764574751937,3.40448668,126.95,126.92,0.05639828]
[1764574752237,10.49438668,126.95,126.92,0.05639828]
[1764574752437,3.35,126.94,126.92,0.05639828]
[1764574753834,10.4405,126.94,126.92,0.05639828]
[1764574754228,3.35,126.93,126.92,0.05639828]
[1764574759341,3.35,126.91,126.86,3.1]
[1764574759743,7.0929,126.9,126.86,3.1]
[1764574759935,3.26,126.89,126.86,3.1]
[1764574760136,3.30989021,126.89,126.86,3.15013265]
[1764574761335,10.40319021,126.89,126.86,3.15013265]
[1764574763137,3.26,126.88,126.86,3.15013265]
[1764574763342,3.26,126.88,126.86,5.76606837]
[1764574764945,3.26,126.88,126.86,2.66606837]
[1764574765147,3.26,126.88,126.86,0.05013265]
[1764574765746,10.4643,126.87,126.86,0.05013265]
[1764574767643,3.37,126.85,126.81,5.81593572]
[1764574768147,112.96683572,126.88,126.82,3.2]
[1764574768342,3.37,126.86,126.83,5.81593572]
[1764574768550,3.42171391,126.86,126.83,3.25733488]
[1764574769350,10.51681391,126.86,126.83,3.25733488]
[1764574769952,7.14681391,126.86,126.84,5.81593572]
[1764574770255,0.05171391,126.86,126.84,5.81593572]
[1764574770954,0.05171391,126.86,126.85,3.2]
[1764574771154,3.37,126.91,126.85,3.2]
[1764574771355,3.37,126.91,126.87,5.81593572]
[1764574771655,10.4626,126.9,126.87,5.81593572]
[1764574772048,3.37,126.89,126.87,2.61593572]
[1764574772354,3.42837735,126.89,126.87,2.66821972]
[1764574773259,3.37,126.88,126.87,2.66821972]
[1764574774257,10.4638,126.88,126.87,0.052284]
[1764574774754,0.05837735,126.89,126.87,3.252284]
[1764574774959,0.05837735,126.89,126.87,5.86821972]
[1764574782759,0.05837735,126.89,126.88,3.2]
[1764574786773,3.42837735,126.89,126.87,5.86821972]
[1764574789574,0.05837735,126.89,126.87,5.86821972]
[1764574790372,3.37,126.88,126.87,0.052284]
[1764574790573,3.37,126.88,126.83,5.81593572]
[1764574790965,3.37,126.86,126.83,5.81593572]
[1764574791172,3.37,126.88,126.84,3.2]
[1764574791878,0.05150668,126.87,126.86,3.2]
[1764574792068,0.05026598,126.88,126.87,5.81593572]
[1764574794975,0.05026598,126.88,126.87,3.2]
[1764574795181,3.42026598,126.88,126.86,0.05021993]
[1764574797875,3.42026598,126.88,126.86,3.25021993]
[1764574798083,3.42026598,126.88,126.86,0.05021993]
[1764574799282,0.05026598,126.88,126.86,3.25021993]
[1764574800591,0.05026598,126.88,126.87,3.2]
[1764574801491,3.42026598,126.88,126.86,0.05021993]
[1764574801791,3.42026598,126.88,126.86,3.25021993]
[1764574802690,3.42026598,126.88,126.86,0.05021993]
[1764574803490,10.51456598,126.88,126.86,0.05021993]
[1764574803794,3.37,126.87,126.81,3.2]
[1764574803988,3.37,126.87,126.81,30.2]
[1764574805184,3.4251907,126.85,126.83,0.05329277]
[1764574805387,10.5206907,126.85,126.83,0.05329277]
[1764574805592,3.37,126.84,126.83,0.05329277]
[1764574808393,3.37,126.83,126.8,27.0]
[1764574808795,3.37,126.83,126.8,30.2]
[1764574809292,10.4667,126.83,126.8,3.25052725]
[1764574810098,3.37,126.81,126.8,0.05052725]
[1764574811395,10.4677,126.81,126.8,0.05052725]
[1764574811697,3.37,126.81,126.8,0.05052725]
[1764574812394,0.06078186,126.82,126.8,3.25052725]
[1764574812395,7.15808186,126.82,126.8,3.25052725]
[1764574813495,10.52808186,126.82,126.8,3.25052725]
[1764574813799,3.37,126.81,126.8,0.05052725]
[1764574813995,10.4677,126.81,126.8,0.05052725]
[1764574816389,3.37,126.79,126.76,30.22]
[1764574816594,3.37,126.79,126.77,3.2]
[1764574816894,7.0987,126.8,126.77,3.2]
[1764574817095,10.4687,126.8,126.77,3.2]
[1764574817294,3.37,126.79,126.77,3.2]
[1764574817494,10.524869,126.79,126.77,0.05054685]
[1764574819302,3.425969,126.79,126.77,0.05054685]
[1764574819503,0.055969,126.79,126.77,3.25054685]
[1764574820397,0.055969,126.79,126.78,3.23]
[1764574820793,0.055969,126.79,126.78,10.3294]
[1764574821100,0.055969,126.79,126.78,14.42740168]
[1764574825104,0.055969,126.79,126.78,10.3294]
[1764574825304,3.16,126.84,126.8,3.23]
[1764574826202,0.05821947,126.83,126.81,0.05203762]
[1764574826506,3.25821947,126.83,126.81,0.05203762]
[1764574826706,0.05821947,126.83,126.81,30.29203762]
[1764574828007,0.05821947,126.83,126.82,3.22]
[1764574828603,0.05821947,126.83,126.82,14.41510168]
[1764574830905,3.2,126.89,126.85,3.22]
[1764574831109,3.2,126.89,126.86,30.22]
[1764574831305,3.2,126.89,126.86,27.0]
[1764574831611,3.2,126.89,126.86,30.22]
[1764574831805,3.25898613,126.89,126.87,3.22]
[1764574832611,3.25898613,126.89,126.86,30.27769698]
[1764574833914,3.25898613,126.89,126.86,0.05769698]
[1764574834102,3.2,126.88,126.86,0.05769698]
[1764574837814,10.35218613,126.89,126.86,3.27769698]
[1764574839916,3.2,126.88,126.86,3.27769698]
[1764574840216,3.2,126.88,126.86,0.05769698]
[1764574844622,3.2,126.88,126.86,3.27769698]
[1764574846823,10.35218613,126.89,126.86,3.27769698]
[1764574847122,10.35218613,126.89,126.87,3.22]
[1764574848922,3.25898613,126.89,126.87,3.22]
[1764574854131,3.08,126.88,126.86,0.05769698]
[1764574854825,10.1743,126.87,126.86,0.05769698]
[1764574855022,3.08,126.86,126.82,3.11]
[1764574855213,3.08,126.85,126.82,3.11]
[1764574856026,3.13721028,126.85,126.82,3.16338262]
[1764574856526,3.13721028,126.85,126.82,30.14338262]
[1764574856724,3.08,126.84,126.82,27.03338262]
[1764574857023,3.08,126.84,126.82,0.05338262]
[1764574857526,10.1766,126.83,126.82,0.05338262]
[1764574861120,0.05721028,126.85,126.83,3.11]
[1764574861319,3.13721028,126.85,126.83,30.09]
[1764574861525,3.13721028,126.85,126.82,2.67818446]
[1764574862319,10.23271028,126.85,126.82,5.78818446]
[1764574862932,3.08,126.84,126.82,5.78818446]
[1764574863128,3.08,126.84,126.82,2.67818446]
[1764574863634,3.08,126.83,126.82,0.05338262]
[1764574864832,10.1763,126.84,126.82,0.05338262]
[1764574865733,3.08,126.83,126.82,0.05338262]
[1764574869738,3.13721028,126.85,126.83,3.11]
[1764574872035,0.05721028,126.85,126.84,2.62480184]
[1764574872240,0.05721028,126.85,126.84,5.73480184]
[1764574875438,3.08,126.89,126.86,3.11]
[1764574875640,3.08,126.89,126.87,3.11]
[1764574876431,3.08,126.91,126.88,2.62480184]
[1764574876637,3.13702338,126.91,126.88,2.67743145]
[1764574877039,3.13702338,126.91,126.88,5.78743145]
[1764574877241,3.13702338,126.91,126.89,3.11]
[1764574877641,3.13702338,126.91,126.88,5.78743145]
[1764574877940,3.08,126.9,126.88,2.67743145]
[1764574880434,3.08,126.9,126.88,0.05262961]
[1764574880639,3.4,126.89,126.88,0.05262961]
[1764574884050,10.4932,126.89,126.88,0.05262961]
[1764574887955,3.4,126.89,126.88,0.05262961]
[1764574888158,3.25,126.89,126.88,0.05262961]
[1764574888846,7.0927,126.9,126.89,3.25]
[1764574889052,7.0927,126.9,126.88,2.67743145]
[1764574889253,3.25,126.89,126.88,2.67743145]
[1764574890059,10.3427,126.9,126.88,2.67743145]
[1764574890752,0.05702338,126.91,126.89,3.25]
[1764574890953,0.05702338,126.91,126.88,2.67743145]
[1764574890954,3.30702338,126.91,126.88,2.67743145]
[1764574891152,3.30702338,126.91,126.88,5.92743145]
[1764574891760,0.05702338,126.91,126.9,2.62480184]
[1764574891960,0.05702338,126.91,126.9,5.87480184]
[1764574893655,0.05702338,126.91,126.9,2.62480184]
[1764574893861,3.30702338,126.91,126.89,26.98]
[1764574896063,3.30702338,126.91,126.88,2.67743145]
[1764574896064,3.30702338,126.91,126.88,3.30262961]
[1764574896262,0.05702338,126.91,126.89,5.87480184]
[1764574896564,0.05702338,126.91,126.9,3.25]
[1764574896863,124.4338,126.99,126.9,3.25]
[1764574897050,124.4338,126.99,126.89,2.62480184]
[1764574897051,3.25,126.96,126.94,2.62480184]
[1764574898055,3.30871342,126.96,126.94,2.67717291]
[1764574900550,3.30871342,126.96,126.94,5.92717291]
[1764574900955,0.05871342,126.96,126.94,5.92717291]
[1764574901156,3.30871342,126.96,126.94,5.92717291]
[1764574902258,0.05871342,126.96,126.94,5.92717291]
[1764574902463,0.05871342,126.96,126.95,3.25]
[1764574904857,3.30871342,126.96,126.95,2.62480184]
[1764574905762,0.05871342,126.96,126.95,5.87480184]
[1764574907059,3.25,126.99,126.96,3.25]
[1764574907363,3.25,126.99,126.97,5.87480184]
[1764574907962,3.30577153,126.99,126.97,5.93524558]
[1764574908258,10.39357153,126.99,126.97,0.06044374]
[1764574908460,3.25,126.98,126.97,0.06044374]
[1764574908655,7.14357153,126.99,126.97,0.06044374]
[1764574908860,10.39357153,126.99,126.97,0.06044374]
[1764574909264,0.05577153,126.99,126.98,3.25]
[1764574912367,0.05577153,126.99,126.98,3.24]
[1764574912757,3.27577153,126.99,126.97,5.92524558]
[1764574915066,3.27577153,126.99,126.97,0.06044374]
[1764574915263,3.22,126.98,126.97,0.06044374]
[1764574916365,10.3082,126.98,126.97,0.06044374]
[1764574916570,3.22,126.97,126.93,3.24]
[1764574917070,3.22,126.95,126.93,3.24]
[1764574917471,3.2785333,126.95,126.93,3.29587877]
[1764574920874,0.0585333,126.95,126.93,3.29587877]
[1764574923668,0.0585333,126.95,126.93,10.38647877]
[1764574923868,0.0585333,126.95,126.94,3.24]
[1764574930679,0.0585333,126.95,126.94,10.3304]
[1764574930880,0.0585333,126.95,126.93,4.14917425]
[1764574930881,3.22,126.99,126.95,3.24]
[1764574931081,3.22,126.99,126.96,30.2]
[1764574931274,10.3076,126.99,126.96,30.2]
[1764574931476,10.3076,126.99,126.97,3.24]
[1764574931879,10.36351938,126.99,126.97,3.29195778]
[1764574935475,10.36351938,126.99,126.97,0.05195778]
[1764574935476,3.22,126.98,126.97,0.05195778]
[1764574935980,7.14351938,126.99,126.97,0.05195778]
[1764574936288,10.36351938,126.99,126.97,0.05195778]
[1764574937287,3.22,126.98,126.97,0.05195778]
[1764574938187,10.36351938,126.99,126.97,0.05195778]
[1764574938488,10.36351938,126.99,126.97,3.29195778]
[1764574939483,0.05591938,126.99,126.97,3.29195778]
[1764574940487,0.05591938,126.99,126.98,3.28]
[1764574940882,3.4,127.02,126.98,3.28]
[1764574941077,3.4,127.06,127.02,3.28]
[1764574941277,3.4,127.05,126.99,3.28]
[1764574941583,3.4,127.01,126.98,10.368]
[1764574941789,3.45661252,127.01,126.98,10.42609957]
[1764574942390,3.45661252,127.01,126.98,3.33809957]
[1764574942786,3.4,127.0,126.98,0.05809957]
[1764574944096,10.4871,127.0,126.98,0.05809957]
[1764574944496,3.4,126.99,126.98,0.05809957]
[1764574948297,10.4271,127.0,126.98,0.05809957]
[1764574948698,3.34,126.99,126.98,0.05809957]
[1764574950695,7.0871,127.0,126.98,0.05809957]
[1764574950696,3.34,127.0,126.98,3.33809957]
[1764574950897,3.39661252,127.01,126.98,3.33809957]
[1764574951902,10.48321252,127.01,126.98,3.33809957]
[1764574952099,3.34,127.0,126.98,0.05809957]
[1764574952495,10.4276,126.99,126.98,0.05809957]
[1764574956407,3.34,126.99,126.98,0.05809957]
[1764574957102,10.4276,127.0,126.98,0.05809957]
[1764574957304,3.34,127.0,126.98,0.05809957]
[1764574959301,0.05661252,127.01,126.98,3.33809957]
[1764574959302,10.48311252,127.01,126.98,3.33809957]
[1764574959508,3.34,127.0,126.98,0.05809957]
[1764574962704,3.34,127.0,126.98,3.33809957]
[1764574965707,3.34,127.0,126.98,0.05809957]
[1764574966614,10.48311252,127.01,126.98,3.33809957]
[1764574967215,3.34,127.0,126.98,3.33809957]
[1764574969018,3.34,127.0,126.98,0.05809957]
[1764574982323,3.34,127.0,126.98,3.25809957]
[1764574982522,3.39,127.05,127.0,3.2]
[1764574982729,3.39,127.05,127.03,2.61748977]
[1764574983427,3.39,127.05,127.03,2.66737014]
[1764574983428,3.39,127.04,127.03,2.66737014]
[1764574984324,0.05876483,127.05,127.03,5.86737014]
[1764574984522,0.05876483,127.05,127.04,3.2]
[1764574985519,3.44876483,127.05,127.04,2.61748977]
[1764574985930,0.05876483,127.05,127.04,2.61748977]
[1764574986842,0.05876483,127.05,127.04,5.81748977]
[1764574988342,0.05876483,127.05,127.04,32.75748977]
[1764574989142,0.05876483,127.05,127.04,39.84228977]
[1764574989344,3.39,127.09,127.06,5.81748977]
[1764574989647,3.39,127.09,127.04,26.94]
[1764574989648,3.39,127.09,127.04,29.55748977]
[1764574989839,3.39,127.07,127.04,29.55748977]
[1764574990246,3.45029034,127.07,127.04,29.61130894]
[1764574990946,3.39,127.06,127.04,0.05381917]
[1764574991842,10.4738,127.06,127.04,0.05381917]
[1764574992244,3.39,127.05,127.04,0.05381917]
[1764574992849,10.4743,127.05,127.04,0.05381917]
[1764574993037,3.39,127.04,127.02,26.94]
[1764574993344,3.39,127.04,126.98,5.81748977]
[1764574993540,3.39,127.04,126.99,26.94]
[1764574993745,3.39,127.02,126.99,30.14]
[1764574993949,3.39,127.02,126.99,26.94]
[1764574994145,3.4446959,127.02,126.99,27.00079675]
[1764574994347,10.4766,127.01,126.99,27.00079675]
[1764574994535,3.39,127.0,126.99,27.00079675]
[1764574998255,7.1407959,127.02,126.99,27.00079675]
[1764574998454,3.39,127.01,126.99,27.00079675]
[1764575000857,10.5207959,127.02,126.99,30.10079675]
[1764575001155,3.38,127.01,126.99,30.10079675]
[1764575002358,0.0546959,127.02,127.0,3.1]
[1764575004663,3.4346959,127.02,127.0,3.1]
[1764575005948,0.0546959,127.02,127.0,3.1]
[1764575006354,3.4346959,127.02,127.0,3.1]
[1764575010364,10.5206959,127.02,126.99,32.70828652]
[1764575010660,10.5206959,127.02,127.0,3.09]
[1764575011749,7.1406959,127.02,126.99,27.00079675]
[1764575011951,3.33,127.01,126.99,5.76828652]
[1764575015158,10.4166,127.01,126.99,0.06079675]
[1764575015358,10.4166,127.01,126.99,2.67828652]
[1764575016463,3.33,127.01,126.99,5.76828652]
[1764575017767,3.33,127.01,126.99,2.67828652]
[1764575020166,3.33,127.01,126.99,0.06079675]
[1764575021755,10.4166,127.01,126.99,0.06079675]
[1764575021958,3.33,127.0,126.99,0.06079675]
[1764575029883,10.4171,127.0,126.99,0.06079675]
[1764575050290,3.34,126.97,126.95,3.32]
[1764575051287,3.3984216,126.97,126.95,3.38042683]
[1764575056995,0.0584216,126.97,126.95,3.38042683]
[1764575057294,0.0584216,126.97,126.96,7.41101944]
[1764575058003,14.85,127.0,126.97,3.32]
[1764575058191,14.85,127.0,126.99,7.41101944]
[1764575060400,17.94,127.0,126.98,0.05619741]
[1764575060600,17.94,127.0,126.98,7.41721685]
[1764575062105,3.09,126.99,126.98,0.05619741]
[1764575063208,14.85,127.0,126.98,3.32619741]
[1764575063604,17.94,127.0,126.98,3.32619741]
[1764575063803,14.85,127.0,126.98,3.32619741]
[1764575067511,14.85,127.0,126.98,7.41721685]
[1764575068408,3.09,126.99,126.98,4.14721685]
[1764575068900,3.09,126.99,126.98,0.05619741]
[1764575074408,3.09,126.99,126.98,3.28619741]
[1764575074608,17.94,127.0,126.98,3.28619741]
[1764575075314,14.85,127.0,126.98,3.28619741]
[1764575076314,17.94,127.0,126.98,3.28619741]
[1764575077109,14.85,127.0,126.99,7.32101944]